bitfinex/quotes_ETHUSD_20260111
["timestamp","ask_amount","ask_price","bid_price","bid_amount"]
[1768148205777,0.00180424,3117.4,3116.6,4.11127756]
[1768148205961,0.00180424,3117.4,3116.6,4.941762]
[1768148210201,0.001,3117.1,3116.6,4.941762]
[1768148210404,0.001,3117.1,3116.7,0.90265278]
[1768148211070,0.001,3117.1,3116.7,4.11111485]
[1768148212683,0.001,3117.1,3116.8,0.90265278]
[1768148213005,0.001,3117.1,3116.9,0.41111149]
[1768148216505,0.001,3117.1,3116.9,1.31376427]
[1768148216806,0.001,3117.1,3116.9,0.90265278]
[1768148217571,0.001,3117.1,3116.9,4.11094994]
[1768148218102,0.00180424,3117.4,3117.0,0.92279338]
[1768148218807,1.17529931,3117.9,3117.2,0.90265278]
[1768148221007,4.38259828,3117.9,3117.2,0.90265278]
[1768148221203,1.17529931,3117.9,3117.2,0.90265278]
[1768148221877,0.001,3117.6,3117.2,0.90265278]
[1768148222078,0.001,3117.6,3117.3,0.41107089]
[1768148222808,0.001,3117.6,3117.3,1.31372367]
[1768148222982,0.001,3117.6,3117.4,0.90265278]
[1768148225497,4.44573212,3118.3,3117.6,0.99189317]
[1768148225802,5.28358843,3118.3,3117.6,0.99269653]
[1768148229130,3.20680233,3118.4,3117.6,0.99269653]
[1768148229335,4.18550628,3118.5,3117.7,0.98556112]
[1768148229898,0.97880603,3118.3,3117.6,0.00080336]
[1768148230200,3.20667923,3118.5,3117.6,0.00080336]
[1768148230201,0.97880603,3118.1,3117.6,0.00080336]
[1768148230729,0.97960939,3118.0,3117.3,1.39663201]
[1768148230895,0.97960939,3118.0,3117.3,0.98556112]
[1768148232101,0.97960939,3118.0,3117.3,4.19346255]
[1768148232628,0.00080336,3118.0,3117.4,0.98556112]
[1768148234134,0.00080336,3118.0,3117.6,0.001]
[1768148240242,0.00080336,3118.0,3117.6,0.42043594]
[1768148241237,0.00080336,3118.0,3117.6,0.001]
[1768148241612,0.97960939,3118.0,3117.6,0.001]
[1768148241832,0.00080336,3118.0,3117.6,0.001]
[1768148246038,0.002,3117.7,3117.6,0.001]
[1768148278482,0.98070644,3117.7,3117.1,0.252]
[1768148279261,0.98070644,3117.7,3117.1,0.69554788]
[1768148280491,0.97870644,3117.6,3117.0,0.00080432]
[1768148280974,0.97870644,3117.6,3117.4,0.001]
[1768148281174,0.97870644,3117.6,3117.0,0.00080432]
[1768148281775,5.42877088,3117.4,3116.7,0.97438162]
[1768148282104,1.52158353,3117.3,3116.5,0.97438162]
[1768148282284,0.97870644,3117.2,3116.4,0.00080336]
[1768148282794,0.97870644,3117.2,3116.4,0.97518498]
[1768148283002,0.97870644,3117.2,3116.5,0.97438162]
[1768148283907,4.18672189,3117.2,3116.5,0.97438162]
[1768148284506,4.18672189,3117.2,3116.4,0.00080336]
[1768148284507,0.96555408,3117.1,3116.4,0.00080336]
[1768148284706,0.96555408,3117.0,3116.4,0.00080336]
[1768148287368,4.17382105,3117.0,3116.4,0.00080336]
[1768148287523,0.96555408,3116.9,3116.4,0.00080336]
[1768148292396,4.13977958,3117.1,3116.4,0.00080336]
[1768148292600,4.97370422,3117.1,3116.4,0.00080336]
[1768148293105,3.45993253,3117.3,3116.7,0.002]
[1768148293106,1.1836318,3117.3,3116.7,0.002]
[1768148293326,0.9316318,3117.3,3116.7,0.002]
[1768148294801,3.20865733,3117.4,3116.7,0.002]
[1768148295034,4.14028913,3117.4,3116.7,0.02214351]
[1768148295338,1.69163072,3117.3,3116.7,0.002]
[1768148295541,0.9316318,3117.1,3116.7,0.002]
[1768148296431,0.9316318,3117.1,3116.4,0.00280336]
[1768148297029,0.9316318,3116.9,3116.4,0.00280336]
[1768148299621,0.9316318,3116.7,3116.4,0.00280336]
[1768148306738,0.9316318,3116.9,3116.4,0.00280336]
[1768148307431,4.13997329,3116.9,3116.4,0.00280336]
[1768148311222,5.31971027,3116.9,3116.4,0.00280336]
[1768148314551,0.98472663,3116.8,3116.4,0.00280336]
[1768148314849,0.93472663,3116.8,3116.4,0.00280336]
[1768148317248,4.14316203,3116.8,3116.4,0.00280336]
[1768148317660,4.14316203,3116.8,3116.7,0.002]
[1768148317958,4.14316203,3116.8,3116.1,1.15650673]
[1768148317959,0.98472663,3116.7,3116.1,0.252]
[1768148318369,0.98472663,3116.7,3115.9,0.002]
[1768148319150,0.98472663,3116.7,3115.9,0.94408134]
[1768148319741,3.20862478,3116.6,3115.9,0.94408134]
[1768148319937,0.98472663,3116.7,3115.9,0.94408134]
[1768148319938,4.19326747,3116.7,3115.9,0.94408134]
[1768148320142,3.46127531,3116.8,3116.1,0.94208134]
[1768148320543,0.00080336,3116.8,3116.1,0.94208134]
[1768148322468,0.00080336,3116.8,3116.2,0.94208134]
[1768148325066,0.98552999,3116.8,3116.0,0.94208134]
[1768148325268,0.98472663,3116.7,3116.0,0.252]
[1768148326674,4.19335141,3116.6,3116.0,0.252]
[1768148329268,0.98472663,3116.5,3116.0,0.252]
[1768148329843,0.98572663,3116.5,3116.0,0.252]
[1768148330966,4.19452354,3116.5,3116.0,0.252]
[1768148333186,0.98472663,3116.4,3116.0,0.252]
[1768148335251,0.001,3116.5,3116.0,0.252]
[1768148336958,0.98572663,3116.5,3116.0,0.252]
[1768148337477,3.2088307,3116.4,3116.0,0.252]
[1768148337686,0.98572663,3116.5,3116.0,0.252]
[1768148338590,4.19450613,3116.5,3116.0,0.252]
[1768148338999,4.93482245,3116.5,3116.0,0.252]
[1768148342184,0.001,3116.2,3116.0,1.19408134]
[1768148342391,0.001,3116.2,3116.1,0.94208134]
[1768148342569,0.001,3116.2,3116.0,0.252]
[1768148344803,0.001,3116.2,3116.0,1.2476213]
[1768148345697,0.001,3116.2,3116.0,1.69352809]
[1768148346211,0.00080336,3116.8,3116.1,0.9956213]
[1768148346695,0.00080336,3116.8,3116.3,0.9956213]
[1768148348902,0.00080336,3116.8,3116.3,4.20448055]
[1768148349216,0.00080336,3116.8,3116.4,0.92042181]
[1768148349495,0.00080336,3116.8,3116.6,0.92042181]
[1768148356430,0.00080336,3116.8,3116.5,0.41494348]
[1768148356431,0.00080432,3117.4,3116.8,0.92042181]
[1768148360184,0.00080432,3117.4,3116.9,0.92042181]
[1768148361508,0.00080432,3117.4,3117.0,0.92042181]
[1768148363916,0.00080432,3117.4,3117.1,0.92042181]
[1768148364116,0.00080432,3117.4,3117.2,0.41286333]
[1768148365289,0.00080432,3117.4,3117.3,0.92042181]
[1768148370409,0.002,3117.7,3117.3,4.14845799]
[1768148370611,0.002,3117.7,3117.3,0.94055372]
[1768148370913,0.002,3117.7,3117.3,0.92042181]
[1768148371216,0.002,3117.7,3117.4,0.45412382]
[1768148371411,0.002,3117.7,3117.4,1.37454563]
[1768148371611,0.00280336,3118.0,3117.6,0.92042181]
[1768148372598,0.00280336,3118.0,3117.6,4.12801599]
[1768148373617,0.00280336,3118.0,3117.7,0.92042181]
[1768148373825,0.00280336,3118.0,3117.8,1.33322341]
[1768148374799,0.00280336,3118.0,3117.8,4.54058273]
[1768148375227,0.00280336,3118.0,3117.8,1.33322341]
[1768148375403,0.00280336,3118.0,3117.8,0.92042181]
[1768148378215,0.00280336,3118.0,3117.6,4.17445446]
[1768148378729,0.00280336,3118.0,3117.7,4.17439242]
[1768148379938,0.00280336,3118.0,3117.8,0.96691445]
[1768148380131,0.00280336,3118.0,3117.8,0.98703254]
[1768148380326,0.00280336,3118.0,3117.9,0.41945105]
[1768148381027,0.00280336,3118.0,3117.9,1.3863655]
[1768148381835,6.47,3118.5,3118.0,0.09719664]
[1768148382601,0.91555004,3118.6,3118.0,0.09719664]
[1768148385608,4.12215955,3118.6,3118.0,0.09719664]
[1768148388007,0.91555004,3118.5,3118.0,0.09719664]
[1768148388618,0.002,3118.3,3118.0,0.09719664]
[1768148390230,0.002,3118.3,3118.0,0.46959885]
[1768148391158,0.002,3118.3,3118.0,0.09719664]
[1768148400249,0.91755004,3118.3,3118.0,0.09719664]
[1768148400473,0.91755004,3118.3,3117.6,0.00080344]
[1768148401356,0.91755004,3118.3,3117.6,3.20837846]
[1768148401525,0.91755004,3118.3,3117.7,0.98703222]
[1768148401526,0.002,3118.3,3117.7,0.98703222]
[1768148401729,0.002,3118.0,3117.8,0.74030063]
[1768148403228,0.002,3118.0,3117.6,0.00080344]
[1768148406551,0.002,3118.0,3117.6,4.16076739]
[1768148406752,0.002,3118.0,3117.7,0.95238442]
[1768148408650,0.002,3118.0,3117.7,4.15982962]
[1768148408857,0.002,3118.0,3117.7,0.95238442]
[1768148409055,0.002,3118.0,3117.8,0.4160748]
[1768148415090,0.002,3118.0,3117.8,1.40437011]
[1768148416888,0.002,3118.0,3117.6,0.00080344]
[1768148417865,0.002,3118.0,3117.6,3.20838364]
[1768148418693,0.002,3118.0,3117.6,4.19667895]
[1768148419481,0.002,3118.0,3117.6,0.00080344]
[1768148426183,0.002,3118.0,3117.9,0.001]
[1768148447223,0.002,3118.3,3117.9,0.001]
[1768148448350,0.002,3118.3,3118.0,0.41743566]
[1768148449455,0.97591576,3118.3,3118.0,0.41743566]
[1768148449656,0.002,3118.3,3118.0,0.41743566]
[1768148453060,0.002,3118.3,3117.9,0.001]
[1768148459248,0.97591576,3118.3,3117.9,0.001]
[1768148460376,0.002,3118.0,3117.9,0.001]
[1768148466054,0.97027356,3118.0,3117.6,0.00080344]
[1768148472402,0.97027356,3118.0,3117.9,0.001]
[1768148472604,0.41973698,3118.0,3117.6,0.00080344]
[1768148472794,0.002,3118.0,3117.6,0.00080344]
[1768148481725,0.002,3118.0,3117.0,0.92658013]
[1768148481726,0.94100207,3117.9,3117.0,0.92658013]
[1768148483427,0.94100207,3117.7,3117.0,0.0008044]
[1768148484219,0.94100207,3117.7,3117.5,0.002]
[1768148484424,3.94307905,3117.7,3117.0,0.92658013]
[1768148486227,3.20733053,3117.9,3117.0,0.92658013]
[1768148486444,7.35566313,3117.9,3117.0,0.92658013]
[1768148487205,3.21001117,3118.0,3117.0,0.92658013]
[1768148487412,3.21001117,3118.0,3117.1,0.92577573]
[1768148487739,3.46201117,3118.0,3117.1,0.92577573]
[1768148487934,4.22301756,3118.0,3117.1,0.92577573]
[1768148489038,7.43022529,3118.0,3117.1,0.92577573]
[1768148490234,8.37122736,3118.0,3117.1,0.92577573]
[1768148490631,4.14838222,3117.9,3117.1,0.92577573]
[1768148493343,0.76380983,3118.0,3117.2,0.92577573]
[1768148493508,0.00280344,3118.0,3117.4,0.92577573]
[1768148493713,0.00280344,3118.0,3117.6,0.92577573]
[1768148495339,0.00280344,3118.0,3117.4,0.93670867]
[1768148496932,0.001,3117.7,3117.4,0.93670867]
[1768148497117,0.001,3117.7,3117.5,0.16040909]
[1768148499949,0.001,3117.7,3117.3,0.41538219]
[1768148500166,0.001,3117.7,3117.3,0.002]
[1768148500320,0.91387166,3117.7,3117.3,0.002]
[1768148502052,4.12139744,3117.7,3117.3,0.002]
[1768148506868,4.12139744,3117.7,3117.0,0.0028044]
[1768148506869,0.91287166,3117.6,3117.0,0.0028044]
[1768148507068,4.38570014,3117.5,3117.0,0.0028044]
[1768148507566,5.2985718,3117.5,3117.0,0.0028044]
[1768148508351,0.91287166,3117.4,3117.0,0.0028044]
[1768148508878,0.91287166,3117.4,3116.7,0.252]
[1768148509041,4.12077593,3117.3,3116.7,0.252]
[1768148509249,0.73294516,3117.2,3116.7,0.252]
[1768148510870,0.73294516,3117.2,3117.0,0.001]
[1768148511076,0.73294516,3117.2,3116.7,0.252]
[1768148511373,3.94096496,3117.2,3116.7,0.252]
[1768148512676,3.94096496,3117.2,3116.5,0.93670867]
[1768148512876,4.85383662,3117.2,3116.5,0.93670867]
[1768148514452,0.73294516,3117.2,3116.5,0.93670867]
[1768148514756,3.2079608,3117.3,3116.5,0.93670867]
[1768148514757,3.2079608,3117.3,3116.6,0.93670867]
[1768148516679,4.12083246,3117.3,3116.6,0.93670867]
[1768148517849,3.2079608,3117.3,3116.6,0.93670867]
[1768148519587,7.32937671,3117.4,3116.6,0.93670867]
[1768148520264,0.91287166,3117.3,3116.4,0.93751211]
[1768148520461,0.91287166,3117.1,3116.4,0.93751211]
[1768148520680,0.91287166,3117.1,3116.4,0.00080344]
[1768148521556,0.73293767,3117.2,3116.4,0.00080344]
[1768148521557,0.91287166,3116.9,3116.4,0.00080344]
[1768148522381,0.91287166,3116.9,3116.3,0.002]
[1768148522585,0.00080344,3116.8,3116.3,0.002]
[1768148522787,1.17883821,3116.8,3116.3,0.002]
[1768148522986,1.17883821,3116.8,3116.3,0.93870867]
[1768148523286,0.00080344,3116.8,3116.3,0.93870867]
[1768148523896,0.00080344,3116.8,3116.5,0.002]
[1768148525369,0.001,3117.1,3116.5,0.9992284]
[1768148525572,0.001,3117.1,3116.7,0.9972284]
[1768148530598,0.001,3117.1,3116.7,1.41802361]
[1768148530799,0.001,3117.1,3116.8,0.99279436]
[1768148531000,0.001,3117.1,3116.8,0.991357]
[1768148533826,0.0008044,3117.4,3116.8,0.991357]
[1768148533996,0.0008044,3117.4,3116.9,0.99279436]
[1768148534518,0.001,3117.7,3117.2,0.99279436]
[1768148535094,0.002,3118.6,3117.1,0.252]
[1768148535095,0.002,3118.6,3118.1,0.99279436]
[1768148535317,0.002,3118.6,3118.2,5.44304087]
[1768148535663,0.0008028,3118.9,3118.3,0.99279436]
[1768148535816,0.0008028,3118.9,3118.4,1.53709845]
[1768148536016,0.0008028,3118.9,3118.5,0.99279436]
[1768148536410,0.0008028,3118.9,3118.7,0.99279436]
[1768148538736,0.0008028,3118.9,3118.5,0.252]
[1768148541155,0.0008028,3118.9,3117.6,3.83080352]
[1768148541156,0.98276306,3118.9,3117.6,3.83080352]
[1768148541369,0.98276306,3118.9,3118.0,0.99279436]
[1768148541520,0.98196026,3118.7,3117.8,0.99279436]
[1768148541717,0.98196026,3118.7,3117.8,1.24479436]
[1768148541959,1.02204234,3118.6,3117.8,1.24479436]
[1768148542551,0.98196026,3118.6,3117.9,0.99279436]
[1768148542751,0.98196026,3118.6,3117.9,1.43800632]
[1768148545257,0.98196026,3118.7,3118.0,0.99279436]
[1768148545466,3.20639558,3118.8,3118.0,0.99279436]
[1768148547234,3.20639558,3118.8,3118.2,0.001]
[1768148549972,3.20710117,3118.9,3118.2,0.99379436]
[1768148550554,3.20710117,3118.9,3118.3,1.0128967]
[1768148550973,3.20710117,3118.9,3118.3,0.99279436]
[1768148558991,0.002,3118.6,3118.3,0.99279436]
[1768148563183,0.0028028,3118.9,3118.4,0.02010362]
[1768148563575,0.0028028,3118.9,3118.3,0.99279436]
[1768148570417,0.0028028,3118.9,3118.4,0.92744073]
[1768148570705,0.0028028,3118.9,3118.6,0.92744073]
[1768148570921,0.002,3119.3,3118.6,0.92744073]
[1768148571292,0.002,3119.3,3118.6,0.92844073]
[1768148571790,0.002,3118.9,3118.7,4.13390496]
[1768148571991,0.002,3119.3,3118.8,1.34093123]
[1768148572789,0.002,3119.3,3118.9,0.92744073]
[1768148573304,0.002,3119.3,3118.8,0.4134905]
[1768148573885,0.002,3119.3,3118.8,1.34093123]
[1768148574298,0.97981627,3119.3,3118.8,0.4134905]
[1768148574495,0.97981627,3119.3,3118.6,0.92844073]
[1768148575016,0.97981627,3119.3,3118.6,4.13500314]
[1768148575212,0.002,3119.3,3118.6,4.13500314]
[1768148575518,0.97981627,3119.3,3118.6,0.92844073]
[1768148576284,0.002,3119.3,3118.6,0.92844073]
[1768148576484,0.002,3119.3,3118.7,0.41358789]
[1768148577001,0.002,3119.3,3118.7,1.34102862]
[1768148578517,0.002,3119.3,3118.8,0.92744073]
[1768148582716,0.002,3119.3,3118.9,0.95267664]
[1768148583196,0.002,3119.0,3118.9,0.95267664]
[1768148583398,0.002,3119.3,3118.9,0.95267664]
[1768148584922,0.002,3119.3,3118.7,0.98054565]
[1768148585728,0.002,3119.3,3118.6,0.001]
[1768148585927,0.002,3119.3,3118.6,0.98154565]
[1768148586733,0.002,3119.3,3118.6,1.23354565]
[1768148587235,0.002,3119.3,3118.7,0.98054565]
[1768148594219,0.93946452,3119.3,3118.7,0.44410163]
[1768148595247,0.93746452,3119.1,3119.0,0.001]
[1768148595542,0.93746452,3119.1,3118.6,0.001]
[1768148598450,4.14354182,3119.1,3118.6,0.001]
[1768148601674,4.14354182,3119.1,3118.5,0.00080288]
[1768148601675,0.93746452,3119.0,3118.5,0.00080288]
[1768148601831,0.93746452,3118.8,3118.2,0.001]
[1768148602657,0.73576479,3118.9,3118.2,0.92414612]
[1768148602865,0.00080288,3118.9,3118.2,0.92414612]
[1768148604441,3.20706149,3118.9,3118.2,0.92414612]
[1768148605126,0.93746452,3118.8,3118.2,0.001]
[1768148607136,4.14392875,3118.7,3118.5,0.001]
[1768148607355,4.14392875,3118.7,3118.2,0.001]
[1768148607559,0.002,3118.6,3118.2,0.001]
[1768148609357,1.67469776,3118.6,3118.2,0.001]
[1768148610482,0.93746452,3118.5,3117.8,0.92314612]
[1768148611127,0.73723324,3118.6,3117.8,0.92314612]
[1768148611552,3.94389279,3118.6,3117.8,0.92314612]
[1768148611761,3.20865955,3118.6,3117.8,1.36148803]
[1768148612527,3.20865955,3118.6,3117.9,0.92314612]
[1768148613866,0.002,3118.6,3117.9,0.92314612]
[1768148616283,0.002,3118.6,3118.0,0.96773458]
[1768148619462,0.002,3118.6,3118.2,0.001]
[1768148619765,0.002,3118.6,3118.3,0.96773458]
[1768148621070,0.002,3118.6,3118.2,0.001]
[1768148622688,4.11722852,3118.9,3118.2,0.001]
[1768148622897,4.11722852,3118.9,3118.2,0.98883757]
[1768148624265,4.11722852,3118.9,3118.2,1.40843491]
[1768148624465,0.00280288,3118.9,3118.2,1.38833192]
[1768148625190,0.91096059,3118.9,3118.2,1.38833192]
[1768148625387,0.91096059,3118.9,3118.2,0.96873458]
[1768148625689,0.81096059,3118.9,3118.5,0.00080296]
[1768148626806,3.20636142,3118.8,3118.5,0.00080296]
[1768148631792,3.20836142,3118.8,3118.5,0.00080296]
[1768148646523,0.002,3118.8,3118.5,0.00080296]
[1768148650312,0.002,3118.8,3118.5,0.95276857]
[1768148652285,7.60785929,3119.2,3118.5,0.95276857]
[1768148652484,9.01584522,3119.2,3118.5,0.95276857]
[1768148655424,7.82002885,3119.2,3118.5,0.95276857]
[1768148655723,7.82002885,3119.2,3118.8,0.001]
[1768148655724,6.41204292,3119.2,3118.8,0.001]
[1768148655890,6.41204292,3119.2,3118.6,0.95196561]
[1768148656693,0.94381637,3119.1,3118.5,0.00080296]
[1768148657528,3.20615581,3119.0,3118.5,0.00080296]
[1768148661002,3.20615581,3119.0,3118.5,0.95276857]
[1768148661749,3.20608941,3119.1,3118.5,0.95276857]
[1768148662650,6.41201,3119.2,3118.5,0.95276857]
[1768148663133,3.20597261,3119.2,3118.5,0.95276857]
[1768148664828,3.20784746,3119.3,3118.5,0.95276857]
[1768148666434,3.20784746,3119.3,3118.6,0.95196561]
[1768148667733,3.20784746,3119.3,3118.8,0.001]
[1768148668135,0.002,3118.9,3118.8,0.001]
[1768148668535,0.002,3119.2,3118.8,0.001]
[1768148671932,0.002,3119.2,3118.8,0.95296561]
[1768148675141,0.002,3119.2,3118.9,0.90550533]
[1768148677058,0.002,3119.2,3118.8,0.001]
[1768148681620,0.002,3118.9,3118.8,0.001]
[1768148683637,0.002,3119.3,3118.8,0.90650533]
[1768148684660,0.002,3119.3,3118.9,0.90550533]
[1768148684958,0.002,3119.3,3119.0,1.31678818]
[1768148685263,0.002,3119.3,3119.1,0.90550533]
[1768148685462,0.002,3119.6,3119.1,0.90550533]
[1768148693966,0.002,3119.3,3119.1,0.90550533]
[1768148702451,3.95e-06,3119.6,3119.3,0.90550533]
[1768148702651,3.95e-06,3119.6,3119.0,0.90550533]
[1768148702852,3.95e-06,3119.6,3119.1,1.31667625]
[1768148703053,3.95e-06,3119.6,3119.1,0.90550533]
[1768148703453,3.95e-06,3119.6,3118.9,0.90550533]
[1768148703981,3.95e-06,3119.6,3118.8,0.001]
[1768148703982,0.9436892,3119.6,3118.8,0.001]
[1768148704880,0.9436892,3119.6,3118.8,3.20735179]
[1768148705182,0.9436892,3119.6,3118.8,4.19986129]
[1768148705382,0.9436892,3119.6,3118.9,0.44518613]
[1768148705868,4.14923256,3119.6,3118.9,0.44518613]
[1768148706074,4.14923256,3119.6,3119.1,0.001]
[1768148706283,0.002,3119.3,3119.1,0.001]
[1768148708288,0.002,3119.3,3119.1,0.93222054]
[1768148709992,0.002,3119.3,3119.2,0.41383488]
[1768148710557,0.002,3119.3,3119.1,0.93222054]
[1768148711487,0.002,3119.3,3119.1,0.001]
[1768148711700,0.002,3119.3,3119.2,0.93122054]
[1768148711990,6.472,3119.9,3119.3,0.93122054]
[1768148712162,6.472,3119.9,3119.4,1.34493066]
[1768148713191,0.002,3119.9,3119.4,1.34493066]
[1768148714466,0.002,3119.9,3119.4,0.93122054]
[1768148717907,0.002,3119.6,3119.4,0.93122054]
[1768148718689,0.002,3119.6,3119.2,0.93122054]
[1768148719874,0.002,3119.6,3119.3,0.93122054]
[1768148721468,0.002,3119.6,3119.4,0.93122054]
[1768148721669,0.002,3119.6,3119.5,1.34492633]
[1768148722401,0.002,3119.6,3119.5,0.93122054]
[1768148729492,0.002,3119.6,3119.5,0.93222054]
[1768148733699,0.002,3119.6,3119.5,0.001]
[1768148740123,0.002,3119.6,3119.2,0.252]
[1768148741507,0.90545808,3119.6,3119.1,0.001]
[1768148741708,0.90345808,3119.5,3119.1,0.001]
[1768148742007,4.10918423,3119.5,3119.1,0.001]
[1768148747290,7.31491038,3119.5,3119.1,0.001]
[1768148751323,6.4114523,3119.5,3119.1,0.001]
[1768148751525,3.52832437,3119.6,3119.1,0.99860277]
[1768148751828,3.207591,3119.6,3119.1,0.99860277]
[1768148753025,3.207591,3119.6,3119.4,0.001]
[1768148753326,3.207591,3119.6,3119.1,0.001]
[1768148753533,6.413182,3119.6,3119.1,0.001]
[1768148753736,3.207591,3119.6,3119.1,0.001]
[1768148753898,3.207591,3119.6,3119.1,0.99860277]
[1768148755224,6.413182,3119.6,3119.1,0.99860277]
[1768148755726,0.002,3119.6,3119.1,0.99860277]
[1768148762135,0.002,3119.6,3119.3,0.96524644]
[1768148764533,0.002,3119.6,3119.4,0.93037885]
[1768148774634,0.002,3119.6,3119.4,0.001]
[1768148776349,0.002,3119.6,3119.1,0.001]
[1768148776350,0.92093082,3119.6,3119.1,0.001]
[1768148776959,0.92093082,3119.6,3118.8,0.001]
[1768148777322,0.91893082,3119.4,3118.8,0.001]
[1768148777626,0.91893082,3119.1,3118.5,0.00080296]
[1768148778229,0.91893082,3118.9,3118.5,0.00080296]
[1768148778652,5.36425846,3118.9,3118.2,0.001]
[1768148778955,5.36506142,3118.9,3118.2,0.001]
[1768148780158,0.91893082,3118.8,3118.2,0.001]
[1768148780340,4.12560069,3118.5,3117.8,0.97180313]
[1768148780548,3.20666987,3118.5,3117.9,0.97180313]
[1768148781258,3.20661703,3118.6,3117.9,0.97180313]
[1768148787354,3.20661703,3118.6,3118.2,0.001]
[1768148787555,3.20861703,3118.6,3118.2,0.001]
[1768148790876,0.002,3118.6,3118.2,0.001]
[1768148799174,0.00280296,3118.9,3118.5,0.96399776]
[1768148799871,0.92121554,3118.8,3118.2,0.001]
[1768148800071,0.002,3118.3,3118.2,0.001]
[1768148823220,0.00280296,3118.9,3118.2,0.96499776]
[1768148823504,6.66509084,3119.6,3118.6,0.96299875]
[1768148823802,3.45954542,3119.6,3118.6,0.96299875]
[1768148824008,0.66649968,3119.5,3118.6,0.96299875]
[1768148824165,0.57895056,3119.4,3118.5,0.00180304]
[1768148824364,0.66649968,3119.5,3118.5,0.93258084]
[1768148828401,3.20574469,3119.4,3118.6,0.99186207]
[1768148830404,3.20574469,3119.4,3118.7,0.99186207]
[1768148830606,3.20574469,3119.4,3118.8,0.99186207]
[1768148832307,3.20564192,3119.5,3118.8,0.99186207]
[1768148836705,0.002,3119.2,3118.8,0.99186207]
[1768148838783,0.002,3119.2,3118.6,0.99186207]
[1768148843631,0.002,3119.2,3118.7,0.99186207]
[1768148843813,0.002,3119.2,3118.9,0.99186207]
[1768148846229,0.002,3119.2,3118.7,0.99186207]
[1768148849340,0.002,3118.9,3118.7,0.99186207]
[1768148851337,3.20764192,3119.5,3118.7,0.99186207]
[1768148851338,0.002,3119.6,3119.0,0.99186207]
[1768148851541,0.002,3119.6,3119.0,0.252]
[1768148852006,3.78653928,3119.6,3118.9,0.99186207]
[1768148852320,3.78653928,3119.6,3118.8,0.99186207]
[1768148852503,3.78653928,3119.6,3118.9,1.41169434]
[1768148855442,0.58095056,3119.6,3118.9,1.41169434]
[1768148856109,3.78649872,3119.6,3118.9,1.41169434]
[1768148858145,0.002,3119.6,3118.9,1.41169434]
[1768148860418,0.002,3119.6,3119.0,0.94497696]
[1768148860943,0.002,3119.6,3119.1,0.94497696]
[1768148861144,0.002,3119.6,3119.2,0.94597696]
[1768148861348,3.207332,3119.9,3119.6,0.94497696]
[1768148861349,0.002,3119.9,3119.6,0.94497696]
[1768148861548,0.002,3120.1,3119.6,0.94497696]
[1768148861752,0.002,3120.1,3119.7,0.94497696]
[1768148865233,0.002,3120.1,3119.6,0.00080264]
[1768148865829,0.57895056,3119.9,3119.2,0.001]
[1768148866048,0.57895056,3119.8,3119.2,0.001]
[1768148866253,0.57895056,3119.8,3119.2,0.44139747]
[1768148867169,0.00080264,3120.0,3119.2,1.38637443]
[1768148867661,0.00080264,3120.0,3119.2,4.59232041]
[1768148867865,0.00080264,3120.0,3119.3,0.94497696]
[1768148872875,0.002,3119.7,3119.3,0.94497696]
[1768148874379,0.002,3119.7,3119.3,1.34730189]
[1768148874673,0.002,3119.7,3119.3,0.94497696]
[1768148875547,0.002,3119.7,3119.2,0.001]
[1768148877571,0.58095056,3119.7,3119.2,0.001]
[1768148878883,0.002,3119.7,3119.2,0.001]
[1768148879179,0.002,3119.7,3119.2,0.94597696]
[1768148881376,0.002,3119.7,3119.3,0.94497696]
[1768148883484,0.002,3119.7,3119.2,0.44140175]
[1768148884181,0.002,3119.7,3119.3,0.94011741]
[1768148884982,0.002,3119.7,3119.5,0.001]
[1768148885479,0.58095056,3119.7,3119.2,0.001]
[1768148885694,0.58095056,3119.7,3118.9,0.94011741]
[1768148885695,5.02314465,3119.6,3118.9,0.94011741]
[1768148885854,0.50251446,3119.6,3119.0,0.94011741]
[1768148886186,0.002,3119.7,3119.0,0.94011741]
[1768148886768,0.002,3119.7,3119.1,0.94011741]
[1768148887795,0.58095056,3119.7,3118.9,0.94011741]
[1768148890059,3.78643205,3119.7,3118.9,0.94011741]
[1768148890488,3.20748149,3119.7,3118.9,0.94011741]
[1768148891190,0.002,3119.7,3119.0,0.93300213]
[1768148892789,0.002,3119.7,3119.1,0.93300213]
[1768148893395,0.00280264,3120.0,3119.4,0.93300213]
[1768148894894,0.00280264,3120.0,3119.6,0.93300213]
[1768148896902,0.00080659,3120.0,3119.9,0.93300213]
[1768148901002,0.254,3120.5,3119.9,0.93300213]
[1768148901169,0.254,3120.5,3120.0,0.93300213]
[1768148901374,0.00282668,3120.6,3120.3,0.93300213]
[1768148901697,0.002,3120.8,3120.4,0.93300213]
[1768148902006,0.002,3120.8,3120.5,0.93300213]
[1768148904075,0.002,3121.3,3120.5,0.93300213]
[1768148904076,0.002,3121.3,3120.7,0.93300213]
[1768148905006,0.002,3121.3,3120.9,0.93300213]
[1768148905505,0.58177724,3122.3,3120.9,0.93300213]
[1768148905678,0.37845128,3122.2,3121.1,0.93300213]
[1768148905878,0.37845128,3122.2,3121.5,0.93300213]
[1768148906073,0.04003587,3122.2,3121.5,0.93300213]
[1768148906707,0.58177724,3122.3,3121.5,0.93300213]
[1768148906912,0.58258116,3122.8,3121.4,6.4073813]
[1768148907113,0.58177724,3122.6,3121.5,1.18500213]
[1768148907302,3.78484195,3122.8,3121.6,0.93300213]
[1768148907605,0.58177724,3122.6,3121.6,0.93300213]
[1768148908182,0.58177724,3122.6,3121.7,0.93300213]
[1768148908409,0.53177724,3122.3,3121.1,0.93300213]
[1768148908712,0.04003587,3122.2,3121.3,0.93300213]
[1768148908911,0.57181311,3122.2,3121.3,0.93300213]
[1768148909215,0.50160072,3122.2,3121.4,0.93300213]
[1768148909384,0.53377724,3122.3,3121.4,0.93300213]
[1768148910211,0.002,3122.3,3121.5,0.93300213]
[1768148910919,0.53377724,3122.3,3121.5,0.93300213]
[1768148911697,0.53377724,3122.3,3121.2,7.90004195]
[1768148911698,0.53377724,3122.3,3121.2,1.18500213]
[1768148911901,0.53377724,3122.3,3121.3,0.93300213]
[1768148912195,0.53177724,3122.1,3121.3,0.93300213]
[1768148912399,3.73475722,3122.1,3121.3,0.93300213]